bitfinex-derivatives/quotes_BTCF0:USTF0_20250924
["timestamp","ask_amount","ask_price","bid_price","bid_amount"]
[1758686410770,1.43140126,111750.0,111740.0,0.0004]
[1758686411571,0.0894561,111740.0,111730.0,0.01406]
[1758686411770,1.55263268,111740.0,111730.0,0.01466]
[1758686412674,1.19183268,111740.0,111730.0,0.39724]
[1758686412871,0.005,111740.0,111730.0,1.17228068]
[1758686413073,1.02455658,111740.0,111730.0,1.08281658]
[1758686413372,1.02455658,111740.0,111730.0,0.8867041]
[1758686413772,1.00733658,111740.0,111730.0,0.8867041]
[1758686414271,1.09779268,111740.0,111730.0,0.8867041]
[1758686414669,1.09779268,111740.0,111730.0,0.79724]
[1758686414869,1.09779268,111740.0,111730.0,0.39724]
[1758686417378,1.45859268,111740.0,111730.0,0.03644]
[1758686418672,1.45859268,111740.0,111730.0,0.01466]
[1758686419476,2.14416926,111740.0,111730.0,0.0008]
[1758686420076,0.0894641,111730.0,111720.0,0.00903936]
[1758686420271,1.02141726,111730.0,111720.0,0.00963936]
[1758686420470,1.02141726,111730.0,111720.0,0.00883936]
[1758686420680,1.02141726,111730.0,111720.0,0.00923936]
[1758686421782,1.02141726,111730.0,111720.0,0.01423936]
[1758686421979,1.42141726,111730.0,111720.0,0.01423936]
[1758686422173,1.42141726,111730.0,111720.0,0.01383936]
[1758686422373,1.42141726,111730.0,111720.0,0.01423936]
[1758686422980,3.30645726,111730.0,111720.0,0.01423936]
[1758686423581,3.37883132,111730.0,111720.0,0.01423936]
[1758686424080,3.37883132,111730.0,111720.0,0.01383936]
[1758686424380,3.37883132,111730.0,111720.0,0.01423936]
[1758686426979,4.19563132,111730.0,111720.0,0.01423936]
[1758686427374,4.19567132,111730.0,111720.0,0.01423936]
[1758686427576,4.19567132,111730.0,111720.0,0.02818936]
[1758686429682,4.19567132,111730.0,111720.0,0.05029936]
[1758686429877,4.19567132,111730.0,111720.0,0.02818936]
[1758686430078,4.19571132,111730.0,111720.0,0.02818936]
[1758686431679,4.19571132,111730.0,111720.0,0.01423936]
[1758686435493,0.80821474,111730.0,111720.0,0.05029936]
[1758686435786,1.62493474,111730.0,111720.0,0.05029936]
[1758686436486,1.26413474,111730.0,111720.0,0.05029936]
[1758686436982,1.26413474,111730.0,111720.0,0.01423936]
[1758686436983,1.54971132,111730.0,111720.0,0.01423936]
[1758686437184,1.54971132,111730.0,111720.0,0.05029936]
[1758686440179,1.17467064,111730.0,111720.0,1.09667594]
[1758686440378,1.26413474,111730.0,111720.0,0.81109936]
[1758686440688,1.17467064,111730.0,111720.0,0.41109936]
[1758686440894,1.17467064,111730.0,111720.0,0.50057146]
[1758686443091,1.26413474,111730.0,111720.0,0.50057146]
[1758686443292,1.17467064,111730.0,111720.0,0.50057146]
[1758686443686,1.17467064,111730.0,111720.0,1.18614804]
[1758686443687,1.17463064,111730.0,111720.0,1.18614804]
[1758686443884,1.10225658,111730.0,111720.0,1.18614804]
[1758686444079,1.08928658,111730.0,111720.0,0.90057146]
[1758686444283,1.08928658,111730.0,111720.0,1.18614804]
[1758686444494,1.17875068,111730.0,111720.0,1.34561956]
[1758686444696,0.8191141,111730.0,111720.0,1.06004298]
[1758686446194,0.8191141,111730.0,111720.0,0.90057146]
[1758686447394,1.07292128,111730.0,111720.0,0.90057146]
[1758686448298,1.07292128,111730.0,111720.0,0.41109936]
[1758686448693,1.07292128,111730.0,111720.0,0.13977146]
[1758686448895,0.72965,111730.0,111720.0,0.50057146]
[1758686449094,0.98345718,111730.0,111720.0,0.50057146]
[1758686449292,1.07292128,111730.0,111720.0,0.50057146]
[1758686449800,0.98345718,111730.0,111720.0,0.50057146]
[1758686450000,1.07292128,111730.0,111720.0,0.50057146]
[1758686451203,1.14624018,111730.0,111720.0,0.41109936]
[1758686451496,1.14624018,111730.0,111720.0,0.50057146]
[1758686452295,1.05677608,111730.0,111720.0,0.50057146]
[1758686453294,1.14624018,111730.0,111720.0,0.50057146]
[1758686453800,1.14624018,111730.0,111720.0,0.41109936]
[1758686454599,1.14624018,111730.0,111720.0,0.05029936]
[1758686455295,1.14624018,111730.0,111720.0,0.02818936]
[1758686455696,1.14624018,111730.0,111720.0,0.04979936]
[1758686455998,1.14624018,111730.0,111720.0,0.05019936]
[1758686459894,0.41659018,111730.0,111720.0,0.41099936]
[1758686460098,1.23315018,111730.0,111720.0,0.41099936]
[1758686461803,0.41659018,111730.0,111720.0,0.41099936]
[1758686462003,1.23315018,111730.0,111720.0,0.41099936]
[1758686463595,0.41659018,111730.0,111720.0,0.41099936]
[1758686463791,1.23315018,111730.0,111720.0,0.41099936]
[1758686464302,0.41659018,111730.0,111720.0,0.41099936]
[1758686464608,0.8898789,111730.0,111720.0,0.65994298]
[1758686464800,0.8836589,111730.0,111720.0,0.65994298]
[1758686465107,0.7898789,111730.0,111720.0,0.65994298]
[1758686465305,1.13315018,111730.0,111720.0,0.57047088]
[1758686467000,1.13315018,111730.0,111720.0,0.41099936]
[1758686468100,0.879343,111730.0,111720.0,0.41099936]
[1758686468408,0.34327148,111730.0,111720.0,0.50047166]
[1758686468598,1.15979148,111730.0,111720.0,0.50047166]
[1758686468797,1.15979148,111730.0,111720.0,0.41099936]
[1758686469004,1.15979148,111730.0,111720.0,0.05019936]
[1758686469705,1.15979148,111730.0,111720.0,0.04979936]
[1758686470000,1.15979148,111730.0,111720.0,0.05019936]
[1758686470306,1.15979148,111730.0,111720.0,0.02818936]
[1758686470803,1.61229599,111730.0,111720.0,0.01423936]
[1758686471104,1.61229599,111730.0,111720.0,0.01383936]
[1758686471507,1.61229599,111730.0,111720.0,0.01423936]
[1758686472407,1.61229599,111730.0,111720.0,0.02816936]
[1758686472705,1.61229599,111730.0,111720.0,0.05017936]
[1758686472905,1.25149599,111730.0,111720.0,0.05017936]
[1758686474502,2.01229599,111730.0,111720.0,0.02816936]
[1758686474705,2.01229599,111730.0,111720.0,0.01423936]
[1758686475597,2.01229599,111730.0,111720.0,0.01383936]
[1758686475909,2.01229599,111730.0,111720.0,0.01423936]
[1758686477711,2.01229599,111730.0,111720.0,0.01383936]
[1758686477914,2.01229599,111730.0,111720.0,0.01423936]
[1758686478213,2.01229599,111730.0,111720.0,0.00385173]
[1758686478601,2.26610317,111730.0,111720.0,0.00385173]
[1758686481106,2.01229599,111730.0,111720.0,0.00385173]
[1758686481508,1.19577599,111730.0,111720.0,0.00385173]
[1758686481710,3.89757599,111730.0,111720.0,0.00385173]
[1758686481903,1.19577599,111730.0,111720.0,0.00385173]
[1758686482108,3.89757599,111730.0,111720.0,0.03829173]
[1758686482411,0.43497599,111730.0,111720.0,0.03829173]
[1758686482609,1.25153599,111730.0,111720.0,0.03829173]
[1758686484718,0.43497599,111730.0,111720.0,0.03829173]
[1758686484917,1.25189599,111730.0,111720.0,0.03829173]
[1758686487307,1.25189599,111730.0,111720.0,0.01721173]
[1758686487512,1.61269599,111730.0,111720.0,0.01721173]
[1758686487713,1.61269599,111730.0,111720.0,0.03829173]
[1758686487908,1.25189599,111730.0,111720.0,0.01721173]
[1758686488114,1.61269599,111730.0,111720.0,0.00385173]
[1758686488517,1.86650317,111730.0,111720.0,0.00385173]
[1758686488719,2.26650317,111730.0,111720.0,0.00385173]
[1758686489213,2.26650317,111730.0,111720.0,0.00345173]
[1758686489412,2.26650317,111730.0,111720.0,0.00385173]
[1758686490420,2.01269599,111730.0,111720.0,0.00385173]
[1758686491823,2.26650317,111730.0,111720.0,0.00385173]
[1758686497720,2.01269599,111730.0,111720.0,0.00385173]
[1758686499520,1.86650317,111730.0,111720.0,0.00385173]
[1758686501718,1.86650317,111730.0,111720.0,0.00345173]
[1758686501915,1.86650317,111730.0,111720.0,0.00385173]
[1758686503324,2.26650317,111730.0,111720.0,0.00385173]
[1758686504027,0.0894721,111720.0,111710.0,0.00025]
[1758686504226,0.95788646,111720.0,111710.0,0.00085]
[1758686505319,0.95788646,111720.0,111710.0,0.00585]
[1758686506518,0.73600933,111720.0,111710.0,0.00585]
[1758686506719,1.02174656,111720.0,111710.0,0.00585]
[1758686506927,1.02174656,111720.0,111710.0,0.00785]
[1758686508429,1.02174656,111720.0,111710.0,0.00285]
[1758686508622,1.03374656,111720.0,111710.0,0.00285]
[1758686509731,1.03374656,111720.0,111710.0,0.00085]
[1758686509930,1.03474656,111720.0,111710.0,0.00085]
[1758686512226,1.03474656,111720.0,111710.0,0.01432]
[1758686512525,1.03474656,111720.0,111710.0,0.00085]
[1758686512929,0.0894801,111710.0,111690.0,0.01395]
[1758686513120,0.1026222,111670.0,111660.0,0.24403597]
[1758686513321,1.20611943,111670.0,111660.0,0.60483597]
[1758686513732,1.11660723,111670.0,111660.0,0.60483597]
[1758686513933,1.20611943,111670.0,111660.0,0.39673]
[1758686514128,1.27658464,111670.0,111660.0,0.39673]
[1758686514520,1.27358464,111670.0,111660.0,0.39673]
[1758686514830,0.36431244,111670.0,111660.0,0.79673]
[1758686515024,1.18203244,111670.0,111660.0,0.79673]
[1758686515224,1.19103244,111670.0,111660.0,0.79673]
[1758686515420,1.28054464,111670.0,111660.0,0.79673]
[1758686516426,1.28154464,111670.0,111660.0,0.79673]
[1758686517729,1.28154464,111670.0,111660.0,0.39673]
[1758686517934,1.28154464,111670.0,111660.0,0.03593]
[1758686517935,1.56728187,111670.0,111660.0,0.03593]
[1758686518234,1.61311856,111670.0,111660.0,0.03553]
[1758686518526,1.61311856,111670.0,111660.0,0.03593]
[1758686519635,1.61311856,111670.0,111660.0,0.03553]
[1758686519831,0.0946302,111660.0,111650.0,0.03643]
[1758686520028,0.0946302,111660.0,111650.0,0.01427]
[1758686520029,1.02690466,111660.0,111650.0,0.01427]
[1758686520225,0.66610466,111660.0,111650.0,0.39633]
[1758686520531,0.0946302,111660.0,111650.0,0.39673]
[1758686520732,0.66610466,111660.0,111650.0,0.39673]
[1758686521029,0.0946302,111660.0,111650.0,0.79673]
[1758686521229,0.0895202,111660.0,111650.0,1.08246723]
[1758686521430,0.1263019,111670.0,111660.0,0.03553]
[1758686521431,0.49255753,111670.0,111660.0,0.03553]
[1758686521630,0.49255753,111670.0,111660.0,0.68206723]
[1758686521631,1.21630753,111670.0,111660.0,0.68206723]
[1758686521934,1.12167913,111670.0,111660.0,0.77158743]
[1758686522330,0.08712995,111670.0,111660.0,1.17158743]
[1758686522536,0.0895003,111690.0,111660.0,1.36780446]
[1758686522837,0.42004358,111690.0,111680.0,0.39633]
[1758686523036,1.23924358,111690.0,111680.0,0.68206723]
[1758686523332,1.23924358,111690.0,111680.0,0.39633]
[1758686523636,1.24435358,111690.0,111680.0,0.39633]
[1758686523943,1.53009081,111690.0,111680.0,0.39633]
[1758686524332,1.53409081,111690.0,111680.0,0.03553]
[1758686524640,1.53409081,111690.0,111680.0,0.39633]
[1758686525236,1.54709081,111690.0,111680.0,0.39633]
[1758686526934,1.6201281,111690.0,111680.0,0.39633]
[1758686527640,0.95404334,111690.0,111680.0,1.17157143]
[1758686527829,1.23978057,111690.0,111680.0,1.17157143]
[1758686528131,0.95404334,111690.0,111680.0,1.17157143]
[1758686528338,0.95363825,111690.0,111680.0,1.17157143]
[1758686528632,0.90923729,111690.0,111680.0,1.17157143]
[1758686528939,0.7362,111690.0,111680.0,1.17157143]
[1758686529329,0.7362,111690.0,111680.0,1.42157143]
[1758686529531,0.8256961,111690.0,111680.0,1.42157143]
[1758686530638,0.7362,111690.0,111680.0,1.42157143]
[1758686531340,0.6362,111690.0,111680.0,1.42157143]
[1758686531733,0.017,111690.0,111680.0,1.51775703]
[1758686533628,0.017,111690.0,111680.0,1.60729456]
[1758686534127,0.0894845,111710.0,111700.0,0.1032581]
[1758686534332,0.115284,111730.0,111720.0,0.03674]
[1758686534532,1.22102123,111730.0,111720.0,0.03674]
[1758686534737,0.935284,111730.0,111720.0,0.03674]
[1758686535041,1.33840908,111730.0,111720.0,0.03674]
[1758686536845,1.62414631,111730.0,111720.0,0.01377]
[1758686537145,0.0945821,111720.0,111710.0,0.03694]
[1758686537347,0.66605656,111720.0,111710.0,0.03754]
[1758686538049,0.66405656,111720.0,111710.0,0.03754]
[1758686538338,0.66405656,111720.0,111710.0,0.39834]
[1758686538648,0.57658446,111720.0,111710.0,0.4948201]
[1758686539346,0.29084723,111720.0,111710.0,0.4948201]
[1758686540246,0.00511,111720.0,111710.0,0.4948201]
[1758686540445,0.29084723,111720.0,111710.0,0.4948201]
[1758686541248,0.38031933,111720.0,111710.0,0.4948201]
[1758686541642,0.38031933,111720.0,111710.0,0.4878201]
[1758686541839,0.29084723,111720.0,111710.0,0.4878201]
[1758686543150,0.29084723,111720.0,111710.0,0.77355733]
[1758686543546,0.00511,111720.0,111710.0,0.77355733]
[1758686543848,1.31770518,111730.0,111720.0,0.1249921]
[1758686544040,1.31770518,111730.0,111720.0,0.77152933]
[1758686544041,1.13223508,111730.0,111720.0,0.77152933]
[1758686544241,1.22680938,111730.0,111720.0,0.77152933]
[1758686544449,1.13734508,111730.0,111720.0,0.4857921]
[1758686544749,1.12823508,111730.0,111720.0,0.77152933]
[1758686545049,1.12312508,111730.0,111720.0,0.77152933]
[1758686545242,1.13923508,111730.0,111720.0,0.77152933]
[1758686545442,1.13923508,111730.0,111720.0,0.4857921]
[1758686545842,1.22869918,111730.0,111720.0,0.4857921]
[1758686546449,1.22869918,111730.0,111720.0,0.77152933]
[1758686546650,1.22869918,111730.0,111720.0,0.4857921]
[1758686546651,0.94296195,111730.0,111720.0,0.4857921]
[1758686546851,0.02838785,111730.0,111720.0,0.77152933]
[1758686547154,0.83124,111730.0,111720.0,1.17152933]
[1758686548352,0.82424,111730.0,111720.0,1.17152933]
[1758686548942,0.47154153,111760.0,111750.0,0.03552]
[1758686548943,1.10054733,111760.0,111750.0,0.03552]
[1758686549148,1.19533733,111760.0,111750.0,0.39632]
[1758686549541,1.19533733,111760.0,111750.0,0.4857681]
[1758686549748,1.26560984,111760.0,111750.0,0.4857681]
[1758686549948,1.26560984,111760.0,111750.0,0.39632]
[1758686550550,1.28160984,111760.0,111750.0,0.39632]
[1758686550950,1.28160984,111760.0,111750.0,0.03552]
[1758686551157,1.68160984,111760.0,111750.0,0.03552]
[1758686551357,1.68160984,111760.0,111750.0,0.01338]
[1758686551553,1.68160984,111760.0,111750.0,0.03552]
[1758686552054,2.32814707,111760.0,111750.0,0.01338]
[1758686552252,2.37230413,111760.0,111750.0,0.01378]
[1758686553754,1.7257669,111760.0,111750.0,0.03592]
[1758686558957,1.7257669,111760.0,111750.0,0.01378]
[1758686559155,0.0894481,111750.0,111740.0,0.37438]
[1758686559462,0.0894561,111740.0,111730.0,0.39732]
[1758686559759,0.9090961,111740.0,111730.0,0.39632]
[1758686559965,1.19483333,111740.0,111730.0,0.39672]
[1758686560556,1.19483333,111740.0,111730.0,0.39772]
[1758686562071,0.81964,111740.0,111730.0,0.4871843]
[1758686562266,1.10537723,111740.0,111730.0,0.4871843]
[1758686562462,1.10537723,111740.0,111730.0,1.13272153]
[1758686562671,1.11237723,111740.0,111730.0,1.13272153]
[1758686563769,1.10637723,111740.0,111730.0,1.13272153]
[1758686564270,1.19583333,111740.0,111730.0,1.13272153]
[1758686564469,1.10637723,111740.0,111730.0,1.13272153]
[1758686564767,0.82064,111740.0,111730.0,1.53272153]
[1758686565460,0.72115,111740.0,111730.0,1.53272153]
[1758686566267,0.001,111740.0,111730.0,1.63585726]
[1758686566657,0.001,111740.0,111730.0,1.60379898]
[1758686568368,0.001,111740.0,111730.0,1.35012003]
[1758686568665,0.001,111740.0,111730.0,1.60379898]
[1758686574268,0.001,111740.0,111730.0,1.69329645]
[1758686575567,0.04415706,111760.0,111750.0,0.1027681]
[1758686575772,0.6260747,111770.0,111760.0,0.1246001]
[1758686576079,0.6219347,111770.0,111760.0,0.4854001]
[1758686576269,0.5699928,111770.0,111760.0,0.4854001]
[1758686576966,0.6734301,111770.0,111760.0,0.4854001]
[1758686578577,0.5789928,111770.0,111760.0,0.4854001]
[1758686579167,0.64259472,111770.0,111760.0,0.4854001]
[1758686579476,0.56803472,111770.0,111760.0,0.4854001]
[1758686579675,0.4847328,111770.0,111760.0,0.73907905]
[1758686580278,0.4789928,111770.0,111760.0,0.73907905]
[1758686581172,0.5684249,111770.0,111760.0,0.4854001]
[1758686581575,0.82210385,111770.0,111760.0,0.4854001]
[1758686582382,0.5684249,111770.0,111760.0,0.4854001]
[1758686583185,0.5684249,111770.0,111760.0,0.39596]
[1758686583381,0.5684249,111770.0,111760.0,0.4854001]
[1758686583578,0.3789928,111770.0,111760.0,0.4854001]
[1758686583880,0.3350747,111770.0,111760.0,0.73907905]
[1758686584284,0.4245068,111770.0,111760.0,0.73907905]
[1758686584478,0.4245068,111770.0,111760.0,0.4854001]
[1758686584676,0.4245068,111770.0,111760.0,0.39596]
[1758686584881,0.67818575,111770.0,111760.0,0.39596]
[1758686585080,0.67818575,111770.0,111760.0,0.39636]
[1758686586488,1.07818575,111770.0,111760.0,0.39636]
[1758686586785,1.07818575,111770.0,111760.0,0.39596]
[1758686587179,0.8245068,111770.0,111760.0,0.39596]
[1758686587380,1.07818575,111770.0,111760.0,0.39596]
[1758686587695,1.1233824,111770.0,111760.0,0.4858001]
[1758686587885,1.1233824,111770.0,111760.0,0.39636]
[1758686588189,0.87775665,111770.0,111760.0,0.73947905]
[1758686588585,0.87775665,111770.0,111760.0,0.4858001]
[1758686589087,0.87775665,111770.0,111760.0,0.73947905]
[1758686590292,0.86200665,111770.0,111760.0,0.73947905]
[1758686590685,0.72031,111770.0,111760.0,0.73947905]
[1758686593386,0.76584245,111770.0,111760.0,0.73947905]
[1758686593889,0.76584245,111770.0,111760.0,0.4858001]
[1758686594082,1.5089537,111770.0,111760.0,0.03556]
[1758686594285,1.5089537,111770.0,111760.0,0.03516]
[1758686594493,1.5089537,111770.0,111760.0,0.03556]
[1758686594694,1.5089537,111770.0,111760.0,0.03516]
[1758686594895,1.5089537,111770.0,111760.0,0.39636]
[1758686595694,1.5089537,111770.0,111760.0,0.4858002]
[1758686595885,1.5089537,111770.0,111760.0,0.39636]
[1758686596595,1.25527475,111770.0,111760.0,0.39636]
[1758686597497,1.25527475,111770.0,111760.0,0.37452]
[1758686597701,1.25527475,111770.0,111760.0,0.37412]
[1758686597894,1.25527475,111770.0,111760.0,0.37452]
[1758686598094,1.52104785,111770.0,111760.0,0.37452]
[1758686598497,1.25527475,111770.0,111760.0,0.37452]
[1758686598984,1.25527475,111770.0,111760.0,0.39612]
[1758686599898,1.25527475,111770.0,111760.0,0.0004]
[1758686599899,1.88184785,111770.0,111760.0,0.0004]
[1758686600496,0.0894403,111760.0,111750.0,0.01352]
[1758686600692,0.7160134,111760.0,111750.0,0.01412]
[1758686601092,0.0894482,111750.0,111740.0,0.50840918]
[1758686601292,1.1744613,111750.0,111740.0,0.12660918]
[1758686601696,1.9352613,111750.0,111740.0,0.11248918]
[1758686602005,1.9352613,111750.0,111740.0,0.0004]
[1758686602198,0.0894561,111740.0,111730.0,0.11268918]
[1758686602501,0.0894561,111740.0,111730.0,0.12550918]
[1758686602702,0.0844561,111740.0,111730.0,0.12550918]
[1758686603099,0.0844561,111740.0,111730.0,0.11248918]
[1758686603298,1.1110292,111740.0,111730.0,0.11248918]
[1758686603498,1.1110292,111740.0,111730.0,0.005]
[1758686603895,1.1110292,111740.0,111730.0,0.0054]
[1758686604503,0.8452561,111740.0,111730.0,0.0054]
[1758686604703,1.1110292,111740.0,111730.0,0.0054]
[1758686605502,1.1110292,111740.0,111730.0,0.01842]
[1758686606006,0.91615666,111740.0,111730.0,0.01842]
[1758686606401,1.18192976,111740.0,111730.0,0.04002]
[1758686606802,1.18192976,111740.0,111730.0,0.0054]
[1758686610112,1.18192976,111740.0,111730.0,0.005]
[1758686610300,1.18192976,111740.0,111730.0,0.0054]
[1758686610608,1.18192976,111740.0,111730.0,0.005]
[1758686610908,1.18192976,111740.0,111730.0,0.0054]
[1758686611208,1.18192976,111740.0,111730.0,0.005]
[1758686611411,1.18192976,111740.0,111730.0,0.0054]
[1758686612002,0.0894721,111720.0,111710.0,0.0008]
[1758686612303,0.0894801,111710.0,111700.0,0.39542]
[1758686612903,0.0894801,111710.0,111700.0,0.39582]
[1758686613708,0.0824801,111710.0,111700.0,0.39582]
[1758686613909,0.0814801,111710.0,111700.0,0.39582]
[1758686614099,0.12577447,111710.0,111700.0,0.39582]
[1758686614903,0.12577447,111710.0,111700.0,0.39882]
[1758686615705,0.12577447,111710.0,111700.0,0.40582]
[1758686616804,0.37972304,111710.0,111700.0,0.40582]
[1758686622216,0.37972304,111710.0,111700.0,0.39882]
[1758686622416,0.37972304,111710.0,111700.0,0.40082]
[1758686622814,0.77972304,111710.0,111700.0,0.0054]
[1758686623123,0.77972304,111710.0,111700.0,0.005]
[1758686623320,0.77972304,111710.0,111700.0,0.0054]
[1758686623618,0.0894882,111700.0,111690.0,0.0001]
[1758686623818,0.0894955,111690.0,111680.0,0.03552]
[1758686624017,0.34344407,111690.0,111680.0,0.01382]
[1758686624218,0.0895036,111680.0,111670.0,0.0001]
[1758686624415,1.41860074,111680.0,111670.0,0.0008]
[1758686624815,0.0895118,111670.0,111660.0,0.0001]
[1758686625020,0.0895199,111660.0,111650.0,0.01512]
[1758686625221,0.0895279,111650.0,111640.0,0.03481717]
[1758686625410,0.34347647,111650.0,111640.0,0.03551717]
[1758686625617,0.34247647,111650.0,111640.0,0.43551717]
[1758686625908,0.33647647,111650.0,111640.0,0.03551717]
[1758686626109,0.33647647,111650.0,111640.0,0.03471717]
[1758686626321,0.33647647,111650.0,111640.0,0.03511717]
[1758686626509,0.38050965,111650.0,111640.0,0.02542]
[1758686626718,0.38050965,111650.0,111640.0,0.02502]
[1758686626915,0.38050965,111650.0,111640.0,0.02542]
[1758686627613,0.45333662,111650.0,111640.0,0.02702]
[1758686627816,0.45333662,111650.0,111640.0,0.02742]
[1758686628120,0.45333662,111650.0,111640.0,0.04862]
[1758686628416,0.45333662,111650.0,111640.0,0.0144]
[1758686628622,0.81413662,111650.0,111640.0,0.0024]
[1758686628924,0.81413662,111650.0,111640.0,0.0064]
[1758686629221,0.81413662,111650.0,111640.0,0.005]
[1758686629423,1.63625662,111650.0,111640.0,0.0054]
[1758686629725,1.63625662,111650.0,111640.0,0.04043]
[1758686630023,1.55376872,111650.0,111640.0,0.04043]
[1758686630224,1.55376872,111650.0,111640.0,0.04083]
[1758686630521,1.34531517,111650.0,111640.0,0.04083]
[1758686630822,1.34527517,111650.0,111640.0,0.01874]
[1758686631122,0.73160872,111650.0,111640.0,0.04083]
[1758686631320,1.55512872,111650.0,111640.0,0.04083]
[1758686631625,1.19452872,111650.0,111640.0,0.04083]
[1758686632228,0.89654697,111650.0,111640.0,0.04083]
[1758686632523,0.89686697,111650.0,111640.0,0.04083]
[1758686632718,0.98639437,111650.0,111640.0,0.04083]
[1758686633126,1.28437632,111650.0,111640.0,0.40163]
[1758686633522,0.89686697,111650.0,111640.0,0.40163]
[1758686633925,0.89686697,111650.0,111640.0,0.4911656]
[1758686634429,0.87209697,111650.0,111640.0,0.4911656]
[1758686634630,0.87209697,111650.0,111640.0,0.8911656]
[1758686634828,0.74829755,111670.0,111660.0,0.03543]
[1758686635028,1.57285755,111670.0,111660.0,0.03543]
[1758686635630,0.0895196,111660.0,111650.0,0.39643]
[1758686635818,0.38750135,111660.0,111650.0,0.39623]
[1758686636629,0.29798175,111660.0,111650.0,0.39623]
[1758686636824,0.76029685,111670.0,111660.0,0.03543]
[1758686637025,1.58521685,111670.0,111660.0,0.03543]
[1758686637222,0.0895198,111660.0,111650.0,0.0002]
[1758686637432,0.0895278,111650.0,111640.0,0.03703]
[1758686637731,1.21254955,111650.0,111640.0,0.03643]
[1758686638030,1.21254955,111650.0,111640.0,0.03583]
[1758686638725,1.28395135,111650.0,111640.0,0.01774]
[1758686639029,1.28395135,111650.0,111640.0,0.04083]
[1758686640026,1.64475135,111650.0,111640.0,0.04083]
[1758686640236,1.28395135,111650.0,111640.0,0.04083]
[1758686641233,1.28395135,111650.0,111640.0,0.03683]
[1758686641435,1.28595135,111650.0,111640.0,0.03583]
[1758686641627,1.28595135,111650.0,111640.0,0.01374]
[1758686641827,1.28595135,111650.0,111640.0,0.0004]
[1758686642425,0.9879696,111650.0,111640.0,0.03583]
[1758686642625,1.28659135,111650.0,111640.0,0.03583]
[1758686642826,0.9886096,111650.0,111640.0,0.39663]
[1758686643022,0.9886096,111650.0,111640.0,0.03583]
[1758686643224,1.28659135,111650.0,111640.0,0.03583]
[1758686643736,1.28715135,111650.0,111640.0,0.03543]
[1758686643936,1.28715135,111650.0,111640.0,0.03583]
[1758686644139,0.9891696,111650.0,111640.0,0.39663]
[1758686644336,0.1629296,111650.0,111640.0,0.39663]
[1758686644631,0.9892396,111650.0,111640.0,0.39663]
[1758686644831,0.0734018,111650.0,111640.0,0.79663]
[1758686645031,0.4503168,111670.0,111660.0,0.03543]
[1758686645231,0.8087968,111670.0,111660.0,0.03543]
[1758686645425,0.71928,111670.0,111660.0,0.03543]
[1758686645637,0.8087915,111670.0,111660.0,0.03543]
[1758686646236,1.10677325,111670.0,111660.0,0.03543]
[1758686646439,0.8087915,111670.0,111660.0,0.03543]
[1758686646641,1.10677325,111670.0,111660.0,0.03543]
[1758686646839,1.10677325,111670.0,111660.0,0.43543]
[1758686647034,0.8087915,111670.0,111660.0,0.43543]
[1758686647430,0.74829105,111680.0,111660.0,0.5249498]
[1758686647637,0.0895038,111680.0,111670.0,0.39623]
[1758686647837,0.8977838,111680.0,111670.0,0.39623]
[1758686648033,0.78373039,111690.0,111680.0,0.01334]
[1758686648237,1.61109039,111690.0,111680.0,0.03543]
[1758686648440,0.90483864,111690.0,111680.0,0.39623]
[1758686648644,1.20282039,111690.0,111680.0,0.39623]
[1758686649149,1.20282039,111690.0,111680.0,0.39663]
[1758686649444,0.37546039,111690.0,111680.0,0.39663]
[1758686649635,1.20358039,111690.0,111680.0,0.39663]
[1758686650142,1.27406162,111690.0,111680.0,0.39663]
[1758686650345,2.03486162,111690.0,111680.0,0.0004]
[1758686650848,0.1065037,111680.0,111670.0,0.001]
[1758686651042,0.76528545,111680.0,111670.0,0.0008]
[1758686651344,0.0895118,111670.0,111660.0,0.39723]
[1758686651651,0.0895118,111670.0,111660.0,0.39703]
[1758686651652,1.21557355,111670.0,111660.0,0.39703]
[1758686651945,1.21557355,111670.0,111660.0,0.03623]
[1758686652141,1.21557355,111670.0,111660.0,0.03543]
[1758686652339,1.21557355,111670.0,111660.0,0.03583]
[1758686652841,0.9295918,111670.0,111660.0,0.39663]
[1758686653236,0.9325918,111670.0,111660.0,0.39663]
[1758686653641,0.9325918,111670.0,111660.0,0.03583]
[1758686653843,0.1045118,111670.0,111660.0,0.39663]
[1758686654035,1.23057355,111670.0,111660.0,0.39663]
[1758686654235,0.9325918,111670.0,111660.0,0.79663]
[1758686655646,0.9325918,111670.0,111660.0,0.43583]
[1758686655841,1.23057355,111670.0,111660.0,0.43583]
[1758686656443,1.23057355,111670.0,111660.0,0.03583]
[1758686658051,0.9325918,111670.0,111660.0,0.03583]
[1758686658238,1.23057355,111670.0,111660.0,0.03583]
[1758686658951,0.9325918,111670.0,111660.0,0.03583]
[1758686659254,1.23057355,111670.0,111660.0,0.03583]
[1758686659648,0.9325918,111670.0,111660.0,0.39663]
[1758686659847,0.1045118,111670.0,111660.0,0.39663]
[1758686660048,0.9336718,111670.0,111660.0,0.39663]
[1758686660554,0.9336718,111670.0,111660.0,0.79663]
[1758686662354,1.23165355,111670.0,111660.0,0.03583]
[1758686662858,0.9336718,111670.0,111660.0,0.03583]
[1758686663050,1.23165355,111670.0,111660.0,0.03583]
[1758686663853,0.9336718,111670.0,111660.0,0.03583]
[1758686664053,1.23165355,111670.0,111660.0,0.03583]
[1758686665745,1.23165355,111670.0,111660.0,0.39663]
[1758686666657,1.23165355,111670.0,111660.0,0.01374]
[1758686666850,1.59245355,111670.0,111660.0,0.01374]
[1758686667045,1.59245355,111670.0,111660.0,0.01334]
[1758686667449,1.59245355,111670.0,111660.0,0.01374]
[1758686668054,1.99245355,111670.0,111650.0,0.01354]
[1758686668250,0.38750165,111660.0,111650.0,0.01354]
[1758686668449,0.38750165,111660.0,111650.0,0.01414]
[1758686668653,0.38750165,111660.0,111650.0,0.03471]
[1758686668854,0.78750165,111660.0,111650.0,0.0004]
[1758686669457,0.79350165,111660.0,111650.0,0.01329]
[1758686670355,0.79350165,111660.0,111650.0,0.0004]
[1758686670550,0.0895278,111650.0,111640.0,0.48682918]
[1758686670746,0.9222878,111650.0,111640.0,0.50799918]
[1758686670950,0.9222878,111650.0,111640.0,0.50879918]
[1758686671350,1.22026955,111650.0,111640.0,0.50879918]
[1758686671658,1.22026955,111650.0,111640.0,0.03551]
[1758686671659,1.58106955,111650.0,111640.0,0.03551]
[1758686671860,1.22026955,111650.0,111640.0,0.03551]
[1758686672157,1.22026955,111650.0,111640.0,0.14799918]
[1758686672561,1.20828429,111650.0,111640.0,0.14799918]
[1758686673167,1.20828429,111650.0,111640.0,0.03551]
[1758686673761,1.20828429,111650.0,111640.0,0.14799918]
[1758686673961,1.20828429,111650.0,111640.0,0.03551]
[1758686674569,1.20828429,111650.0,111640.0,0.14799918]